[Event "NJSK 2018 Meisjes AB"]
[Site "Assen, Netherlands"]
[Date "2018.05.02"]
[Round "4.7"]
[White "Monteny, Pascalle"]
[Black "Heskes, Ebba"]
[Result "0-1"]
[TimeControl "40/90m+30m+30sec/move"]
[WhiteElo "1446"]
[BlackElo "1266"]

1. e4 {[%clk 01:30:58]} {[%emt 00:00:02]} e5 {[%clk 01:30:55]} {[%emt
00:00:06]} 2. Nf3 {[%clk 01:31:20]} {[%emt 00:00:07]} Nc6 {[%clk 01:31:13]}
{[%emt 00:00:12]} 3. d4 {[%clk 01:31:42]} {[%emt 00:00:09]} exd4 {[%clk
01:29:20]} {[%emt 00:02:23]} 4. Bc4 {[%clk 01:31:37]} {[%emt 00:00:34]} h6
{[%clk 01:28:07]} {[%emt 00:01:43]} 5. Nxd4 {[%clk 01:24:37]} {[%emt 00:07:31]}
Ne5 {[%clk 01:24:19]} {[%emt 00:04:18]} 6. Bb3 {[%clk 01:21:32]} {[%emt
00:03:34]} Nf6 {[%clk 01:23:40]} {[%emt 00:01:09]} 7. Nc3 {[%clk 01:14:45]}
{[%emt 00:07:18]} Bb4 {[%clk 01:20:36]} {[%emt 00:03:34]} 8. Qe2 {[%clk
01:09:40]} {[%emt 00:05:35]} Bxc3+ {[%clk 01:17:38]} {[%emt 00:03:28]} 9. bxc3
{[%clk 01:10:00]} {[%emt 00:00:10]} O-O {[%clk 01:17:49]} {[%emt 00:00:19]} 10.
O-O {[%clk 01:07:26]} {[%emt 00:03:03]} d6 {[%clk 01:16:48]} {[%emt 00:01:31]}
11. Bb2 {[%clk 00:59:03]} {[%emt 00:08:54]} Re8 {[%clk 01:13:29]} {[%emt
00:03:47]} 12. Rae1 {[%clk 00:53:37]} {[%emt 00:05:57]} Ng6 {[%clk 01:11:44]}
{[%emt 00:02:15]} 13. f3 {[%clk 00:50:23]} {[%emt 00:03:45]} c5 {[%clk
01:06:24]} {[%emt 00:05:49]} 14. Nb5 {[%clk 00:45:33]} {[%emt 00:05:20]} a6
{[%clk 01:06:00]} {[%emt 00:00:55]} 15. Na3 {[%clk 00:45:12]} {[%emt 00:00:51]}
b5 {[%clk 01:05:57]} {[%emt 00:00:33]} 16. c4 {[%clk 00:43:49]} {[%emt
00:01:53]} b4 {[%clk 01:05:12]} {[%emt 00:01:15]} 17. Nb1 {[%clk 00:42:59]}
{[%emt 00:01:20]} a5 {[%clk 01:04:45]} {[%emt 00:00:57]} 18. Ba4 {[%clk
00:29:28]} {[%emt 00:14:01]} Re6 {[%clk 00:55:24]} {[%emt 00:09:51]} 19. Qd2
{[%clk 00:21:17]} {[%emt 00:08:40]} Bb7 {[%clk 00:49:45]} {[%emt 00:06:09]} 20.
Rd1 {[%clk 00:18:40]} {[%emt 00:03:07]} Nh5 {[%clk 00:45:37]} {[%emt 00:04:38]}
21. g3 {[%clk 00:12:58]} {[%emt 00:06:13]} Qe7 {[%clk 00:39:34]} {[%emt
00:06:33]} 22. Qd3 {[%clk 00:09:27]} {[%emt 00:04:00]} Qg5 {[%clk 00:33:33]}
{[%emt 00:06:32]} 23. Bc1 {[%clk 00:06:53]} {[%emt 00:03:05]} Ngf4 {[%clk
00:29:18]} {[%emt 00:04:45]} 24. Bxf4 {[%clk 00:06:00]} {[%emt 00:01:23]} Nxf4
{[%clk 00:29:37]} {[%emt 00:00:11]} 25. Qd2 {[%clk 00:05:40]} {[%emt 00:00:51]}
Nh3+ {[%clk 00:23:58]} {[%emt 00:06:09]} 26. Kg2 {[%clk 00:05:18]} {[%emt
00:00:52]} Qxd2+ {[%clk 00:22:05]} {[%emt 00:02:24]} 27. Nxd2 {[%clk 00:04:39]}
{[%emt 00:01:08]} Ng5 {[%clk 00:21:59]} {[%emt 00:00:35]} 28. h4 {[%clk
00:03:22]} {[%emt 00:01:48]} Nh7 {[%clk 00:22:14]} {[%emt 00:00:15]} 29. Nb3
{[%clk 00:03:26]} {[%emt 00:00:26]} Nf6 {[%clk 00:21:02]} {[%emt 00:01:42]} 30.
Rd2 {[%clk 00:02:49]} {[%emt 00:01:07]} g5 {[%clk 00:18:25]} {[%emt 00:03:06]}
31. hxg5 {[%clk 00:02:32]} {[%emt 00:00:48]} hxg5 {[%clk 00:18:43]} {[%emt
00:00:12]} 32. g4 {[%clk 00:02:20]} {[%emt 00:00:42]} Ba6 {[%clk 00:17:56]}
{[%emt 00:01:17]} 33. Bb5 {[%clk 00:01:58]} {[%emt 00:00:52]} Bxb5 {[%clk
00:17:46]} {[%emt 00:00:41]} 34. cxb5 {[%clk 00:02:25]} {[%emt 00:00:03]} a4
{[%clk 00:18:07]} {[%emt 00:00:09]} 35. Nc1 {[%clk 00:02:33]} {[%emt 00:00:21]}
Rb8 {[%clk 00:18:06]} {[%emt 00:00:30]} 36. Rfd1 {[%clk 00:02:19]} {[%emt
00:00:44]} Ne8 {[%clk 00:18:17]} {[%emt 00:00:20]} 37. Ne2 {[%clk 00:01:06]}
{[%emt 00:01:43]} Rxb5 {[%clk 00:17:33]} {[%emt 00:01:13]} 38. Rd5 {[%clk
00:00:53]} {[%emt 00:00:43]} Re5 {[%clk 00:16:33]} {[%emt 00:01:30]} 39. Ng3
{[%clk 00:00:42]} {[%emt 00:00:41]} Rxd5 {[%clk 00:12:55]} {[%emt 00:04:08]} 40.
Rxd5 {[%clk 00:00:44]} {[%emt 00:00:29]} f6 {[%clk 00:13:05]} {[%emt 00:00:19]}
41. Nf5 {[%clk 00:22:35]} {[%emt 00:08:38]} Rb6 {[%clk 00:42:54]} {[%emt
00:00:42]} 42. Ne3 {[%clk 00:21:03]} {[%emt 00:02:03]} Kf7 {[%clk 00:38:28]}
{[%emt 00:04:55]} 43. Nc4 {[%clk 00:16:04]} {[%emt 00:05:29]} Ra6 {[%clk
00:37:19]} {[%emt 00:01:39]} 44. Kf2 {[%clk 00:09:01]} {[%emt 00:07:34]} Ke6
{[%clk 00:34:41]} {[%emt 00:03:08]} 45. Ke2 {[%clk 00:04:35]} {[%emt 00:04:56]}
Nc7 {[%clk 00:33:50]} {[%emt 00:01:21]} 46. Rd3 {[%clk 00:04:10]} {[%emt
00:00:56]} d5 {[%clk 00:31:13]} {[%emt 00:03:07]} 47. Nd2 {[%clk 00:01:26]}
{[%emt 00:03:14]} d4 {[%clk 00:30:52]} {[%emt 00:00:52]} 48. Nb1 {[%clk
00:00:40]} {[%emt 00:01:16]} Nb5 {[%clk 00:30:21]} {[%emt 00:01:00]} 49. Kd1
{[%clk 00:00:36]} {[%emt 00:00:34]} Nc3+ {[%clk 00:29:40]} {[%emt 00:01:11]} 50.
Nxc3 {[%clk 00:00:39]} {[%emt 00:00:27]} dxc3 {[%clk 00:28:11]} {[%emt
00:01:58]} 51. Kc1 {[%clk 00:00:43]} {[%emt 00:00:26]} Rd6 {[%clk 00:28:23]}
{[%emt 00:00:18]} 52. Re3 {[%clk 00:00:36]} {[%emt 00:00:37]} Ke5 {[%clk
00:28:11]} {[%emt 00:00:41]} 53. Re1 {[%clk 00:00:37]} {[%emt 00:00:29]} c4
{[%clk 00:27:13]} {[%emt 00:01:28]} 54. Kb1 {[%clk 00:00:36]} {[%emt 00:00:31]}
Rd2 {[%clk 00:26:19]} {[%emt 00:01:24]} 55. Kc1 {[%clk 00:00:39]} {[%emt
00:00:27]} b3 {[%clk 00:25:56]} {[%emt 00:00:53]} 56. cxb3 {[%clk 00:00:40]}
{[%emt 00:00:29]} cxb3 {[%clk 00:26:07]} {[%emt 00:00:19]} 57. axb3 {[%clk
00:00:34]} {[%emt 00:00:36]} a3 {[%clk 00:24:12]} {[%emt 00:02:25]} 58. Kb1
{[%clk 00:00:39]} {[%emt 00:00:24]} a2+ {[%clk 00:23:12]} {[%emt 00:01:30]} 59.
Ka1 {[%clk 00:00:36]} {[%emt 00:00:33]} Kd4 {[%clk 00:19:34]} {[%emt 00:04:07]}
60. b4 {[%clk 00:00:42]} {[%emt 00:00:25]} Kc4 {[%clk 00:19:17]} {[%emt
00:00:46]} 61. b5 {[%clk 00:00:46]} {[%emt 00:00:26]} Kb3 {[%clk 00:18:32]}
{[%emt 00:01:16]} 62. b6 {[%clk 00:00:37]} {[%emt 00:00:39]} c2 {[%clk
00:17:52]} {[%emt 00:01:10]} 63. Re3+ {[%clk 00:00:42]} {[%emt 00:00:24]} Kc4
{[%clk 00:17:38]} {[%emt 00:00:44]} 64. Re1 {[%clk 00:00:37]} {[%emt 00:00:36]}
Rd1+ {[%clk 00:17:33]} {[%emt 00:00:34]} 65. Kxa2 {[%clk 00:00:36]} {[%emt
00:00:30]} c1=Q {[%clk 00:17:15]} {[%emt 00:00:49]} 66. Rxd1 {[%clk 00:00:46]}
{[%emt 00:00:20]} Qxd1 {[%clk 00:17:38]} {[%emt 00:00:06]} 67. b7 {[%clk
00:01:01]} {[%emt 00:00:15]} Qb3+ {[%clk 00:18:02]} {[%emt 00:00:06]} 68. Ka1
{[%clk 00:01:27]} {[%emt 00:00:05]} Kc3 {[%clk 00:18:14]} {[%emt 00:00:18]} 69.
b8=Q {[%clk 00:01:42]} {[%emt 00:00:15]} Qxb8 {[%clk 00:18:36]} {[%emt
00:00:07]} 70. e5 {[%clk 00:02:08]} {[%emt 00:00:05]} Qb2# {[%clk 00:18:56]}
{[%emt 00:00:10]} 0-1

[Event "NJSK 2018 Meisjes AB"]
[Site "Assen, Netherlands"]
[Date "2018.05.03"]
[Round "5.2"]
[White "Den Dunnen, Lola"]
[Black "Duson, Robin"]
[Result "0-1"]
[TimeControl "40/90m+30m+30sec/move"]
[WhiteElo "1912"]
[BlackElo "1920"]

1. d4 {[%clk 01:21:19]} {[%emt 00:09:40]} Nf6 {[%clk 01:30:33]} {[%emt
00:00:26]} 2. c4 {[%clk 01:21:25]} {[%emt 00:00:25]} e6 {[%clk 01:30:48]}
{[%emt 00:00:14]} 3. Nc3 {[%clk 01:21:43]} {[%emt 00:00:13]} Bb4 {[%clk
01:31:04]} {[%emt 00:00:14]} 4. e3 {[%clk 01:22:07]} {[%emt 00:00:06]} O-O
{[%clk 01:31:13]} {[%emt 00:00:19]} 5. Nge2 {[%clk 01:22:34]} {[%emt 00:00:06]}
d5 {[%clk 01:31:09]} {[%emt 00:00:33]} 6. a3 {[%clk 01:21:37]} {[%emt
00:01:27]} Bd6 {[%clk 01:31:19]} {[%emt 00:00:20]} 7. cxd5 {[%clk 01:16:56]}
{[%emt 00:05:12]} exd5 {[%clk 01:30:40]} {[%emt 00:01:08]} 8. Ng3 {[%clk
01:13:28]} {[%emt 00:03:59]} Re8 {[%clk 01:28:34]} {[%emt 00:02:35]} 9. Bd3
{[%clk 01:09:35]} {[%emt 00:04:23]} b6 {[%clk 01:24:05]} {[%emt 00:04:59]} 10.
b4 {[%clk 01:04:56]} {[%emt 00:05:09]} c6 {[%clk 01:21:38]} {[%emt 00:02:57]}
11. O-O {[%clk 01:00:00]} {[%emt 00:05:26]} Nbd7 {[%clk 01:18:34]} {[%emt
00:03:34]} 12. Qc2 {[%clk 00:52:34]} {[%emt 00:07:57]} Bb7 {[%clk 01:11:16]}
{[%emt 00:07:47]} 13. e4 {[%clk 00:43:05]} {[%emt 00:09:59]} dxe4 {[%clk
00:58:08]} {[%emt 00:13:38]} 14. Ngxe4 {[%clk 00:38:25]} {[%emt 00:05:10]} Bc7
{[%clk 00:54:36]} {[%emt 00:04:02]} 15. Bg5 {[%clk 00:35:46]} {[%emt 00:03:09]}
h6 {[%clk 00:54:15]} {[%emt 00:00:52]} 16. Be3 {[%clk 00:28:37]} {[%emt
00:07:38]} Nxe4 {[%clk 00:51:10]} {[%emt 00:03:35]} 17. Bxe4 {[%clk 00:28:13]}
{[%emt 00:00:55]} Nf6 {[%clk 00:50:21]} {[%emt 00:01:18]} 18. Bf3 {[%clk
00:27:54]} {[%emt 00:00:48]} Qd7 {[%clk 00:42:48]} {[%emt 00:08:05]} 19. g3
{[%clk 00:23:13]} {[%emt 00:05:11]} Bd6 {[%clk 00:35:49]} {[%emt 00:07:29]} 20.
Rfd1 {[%clk 00:21:44]} {[%emt 00:01:59]} Rac8 {[%clk 00:32:48]} {[%emt
00:03:29]} 21. Qd3 {[%clk 00:20:02]} {[%emt 00:02:12]} Bb8 {[%clk 00:29:25]}
{[%emt 00:03:54]} 22. Bg2 {[%clk 00:17:02]} {[%emt 00:03:30]} Rcd8 {[%clk
00:27:29]} {[%emt 00:02:26]} 23. Rac1 {[%clk 00:15:30]} {[%emt 00:02:02]} Re7
{[%clk 00:25:48]} {[%emt 00:02:11]} 24. b5 {[%clk 00:13:11]} {[%emt 00:02:50]}
cxb5 {[%clk 00:24:37]} {[%emt 00:01:40]} 25. Bxb7 {[%clk 00:12:39]} {[%emt
00:01:03]} Qxb7 {[%clk 00:24:59]} {[%emt 00:00:07]} 26. Qxb5 {[%clk 00:12:11]}
{[%emt 00:00:58]} Qf3 {[%clk 00:23:00]} {[%emt 00:02:29]} 27. Qe2 {[%clk
00:09:57]} {[%emt 00:02:44]} Qxe2 {[%clk 00:22:25]} {[%emt 00:01:05]} 28. Nxe2
{[%clk 00:10:23]} {[%emt 00:00:04]} Nd5 {[%clk 00:22:08]} {[%emt 00:00:46]} 29.
Rd3 {[%clk 00:10:00]} {[%emt 00:00:53]} Rde8 {[%clk 00:18:47]} {[%emt
00:03:52]} 30. Nf4 {[%clk 00:10:12]} {[%emt 00:00:18]} Bxf4 {[%clk 00:17:10]}
{[%emt 00:02:07]} 31. Bxf4 {[%clk 00:10:12]} {[%emt 00:00:31]} Re1+ {[%clk
00:13:30]} {[%emt 00:04:10]} 32. Rxe1 {[%clk 00:10:28]} {[%emt 00:00:14]} Rxe1+
{[%clk 00:13:54]} {[%emt 00:00:05]} 33. Kg2 {[%clk 00:10:48]} {[%emt 00:00:10]}
Nxf4+ {[%clk 00:13:48]} {[%emt 00:00:36]} 34. gxf4 {[%clk 00:11:10]} {[%emt
00:00:09]} Kf8 {[%clk 00:13:08]} {[%emt 00:01:09]} 35. d5 {[%clk 00:11:10]}
{[%emt 00:00:31]} Ke7 {[%clk 00:12:33]} {[%emt 00:01:04]} 36. Kf3 {[%clk
00:04:31]} {[%emt 00:07:08]} Kd6 {[%clk 00:11:15]} {[%emt 00:01:49]} 37. h4
{[%clk 00:03:34]} {[%emt 00:01:26]} f5 {[%clk 00:10:28]} {[%emt 00:01:17]} 38.
Rc3 {[%clk 00:01:57]} {[%emt 00:02:08]} Re7 {[%clk 00:10:03]} {[%emt 00:00:55]}
39. Rd3 {[%clk 00:01:35]} {[%emt 00:00:52]} h5 {[%clk 00:08:16]} {[%emt
00:02:16]} 40. Kg2 {[%clk 00:01:22]} {[%emt 00:00:43]} g6 {[%clk 00:07:08]}
{[%emt 00:01:39]} 41. Rg3 {[%clk 00:28:23]} {[%emt 00:03:29]} Rg7 {[%emt
00:02:38]} 42. Rd3 {[%clk 00:27:46]} Rf7 {[%clk 00:36:15]} {[%emt 00:00:22]} 43.
Kf1 {[%clk 00:21:09]} {[%emt 00:07:08]} Rf6 {[%clk 00:36:15]} {[%emt 00:00:29]}
44. Ke2 {[%clk 00:20:25]} {[%emt 00:01:13]} Kc5 {[%clk 00:35:42]} {[%emt
00:01:04]} 45. Kd2 {[%clk 00:18:26]} {[%emt 00:02:29]} Rd6 {[%clk 00:35:35]}
{[%emt 00:00:36]} 46. Kc3 {[%clk 00:18:50]} {[%emt 00:00:07]} Rxd5 {[%clk
00:35:00]} {[%emt 00:01:05]} 47. Rg3 {[%clk 00:19:15]} {[%emt 00:00:05]} Rd6
{[%clk 00:35:00]} {[%emt 00:00:29]} 48. Rg1 {[%clk 00:17:06]} {[%emt 00:02:40]}
Re6 {[%clk 00:32:36]} {[%emt 00:02:54]} 49. Kb3 {[%clk 00:15:20]} {[%emt
00:02:16]} b5 {[%clk 00:31:33]} {[%emt 00:01:33]} 50. Rc1+ {[%clk 00:15:16]}
{[%emt 00:00:34]} Kb6 {[%clk 00:30:38]} {[%emt 00:01:24]} 51. Rg1 {[%clk
00:15:02]} {[%emt 00:00:44]} a6 {[%clk 00:28:29]} {[%emt 00:02:40]} 52. Rg3
{[%clk 00:13:12]} {[%emt 00:02:19]} Kc5 {[%clk 00:26:47]} {[%emt 00:02:13]} 53.
Rg1 {[%clk 00:13:22]} {[%emt 00:00:20]} Kd6 {[%clk 00:25:08]} {[%emt 00:02:08]}
54. Kb4 {[%clk 00:10:36]} {[%emt 00:03:17]} Ke7 {[%clk 00:24:14]} {[%emt
00:01:23]} 55. Ka5 {[%clk 00:10:11]} {[%emt 00:00:56]} Kf7 {[%clk 00:23:00]}
{[%emt 00:01:44]} 56. Rc1 {[%clk 00:09:53]} {[%emt 00:00:47]} Re4 {[%clk
00:22:19]} {[%emt 00:01:11]} 57. Kxa6 {[%clk 00:07:08]} {[%emt 00:03:16]} Ra4+
{[%clk 00:22:16]} {[%emt 00:00:33]} 58. Kxb5 {[%clk 00:07:16]} {[%emt
00:00:22]} Rxa3 {[%clk 00:22:32]} {[%emt 00:00:14]} 59. Rc7+ {[%clk 00:07:24]}
{[%emt 00:00:22]} Kf6 {[%clk 00:22:15]} {[%emt 00:00:46]} 60. Rc6+ {[%clk
00:07:44]} {[%emt 00:00:11]} Kg7 {[%clk 00:22:27]} {[%emt 00:00:18]} 61. Rc7+
{[%clk 00:06:35]} {[%emt 00:01:40]} Kh6 {[%clk 00:22:31]} {[%emt 00:00:25]} 62.
Kc5 {[%clk 00:06:06]} {[%emt 00:00:58]} Ra4 {[%clk 00:22:21]} {[%emt 00:00:41]}
63. Kd5 {[%clk 00:06:19]} {[%emt 00:00:17]} Rxf4 {[%clk 00:21:42]} {[%emt
00:01:09]} 64. Ke5 {[%clk 00:06:41]} {[%emt 00:00:08]} Rxh4 {[%clk 00:21:09]}
{[%emt 00:01:03]} 65. Kf6 {[%clk 00:06:43]} {[%emt 00:00:28]} Ra4 {[%clk
00:21:09]} {[%emt 00:00:30]} 66. f4 {[%clk 00:05:25]} {[%emt 00:01:47]} Ra6+
{[%clk 00:20:32]} {[%emt 00:01:08]} 67. Kf7 {[%clk 00:04:47]} {[%emt 00:01:08]}
h4 {[%clk 00:20:36]} {[%emt 00:00:26]} 68. Rc1 {[%clk 00:03:37]} {[%emt
00:01:40]} Kh5 {[%clk 00:20:52]} {[%emt 00:00:14]} 69. Rg1 {[%clk 00:03:53]}
{[%emt 00:00:14]} h3 {[%clk 00:20:31]} {[%emt 00:00:50]} 70. Re1 {[%clk
00:02:02]} {[%emt 00:02:18]} Kg4 {[%clk 00:20:24]} {[%emt 00:00:41]} 71. Rh1
{[%clk 00:02:02]} {[%emt 00:00:29]} Kg3 {[%clk 00:20:30]} {[%emt 00:00:24]} 0-1

[Event "NJSK 2018 Meisjes AB"]
[Site "Assen, Netherlands"]
[Date "2018.05.03"]
[Round "5.5"]
[White "Heskes, Ebba"]
[Black "Naber, Quirine"]
[Result "0-1"]
[TimeControl "40/90m+30m+30sec/move"]
[WhiteElo "1266"]
[BlackElo "1775"]

1. e4 {[%clk 01:30:57]} {[%emt 00:00:03]} e5 {[%clk 01:30:57]} {[%emt
00:00:03]} 2. Nf3 {[%clk 01:31:19]} {[%emt 00:00:09]} Nc6 {[%clk 01:31:24]}
{[%emt 00:00:03]} 3. Bc4 {[%clk 01:31:35]} {[%emt 00:00:13]} Nf6 {[%clk
01:31:49]} {[%emt 00:00:05]} 4. d3 {[%clk 01:31:32]} {[%emt 00:00:33]} Bc5
{[%clk 01:32:14]} {[%emt 00:00:06]} 5. O-O {[%clk 01:31:22]} {[%emt 00:00:39]}
h6 {[%clk 01:32:10]} {[%emt 00:00:34]} 6. Nc3 {[%clk 01:31:25]} {[%emt
00:00:27]} d6 {[%clk 01:32:32]} {[%emt 00:00:08]} 7. h3 {[%clk 01:31:33]}
{[%emt 00:00:22]} g5 {[%clk 01:32:45]} {[%emt 00:00:17]} 8. Nh2 {[%clk
01:28:09]} {[%emt 00:03:54]} Bd7 {[%clk 01:12:26]} {[%emt 00:20:50]} 9. a3
{[%clk 01:26:48]} {[%emt 00:01:51]} Ne7 {[%clk 01:03:19]} {[%emt 00:09:37]} 10.
Qf3 {[%clk 01:21:41]} {[%emt 00:05:36]} Ng6 {[%clk 00:52:42]} {[%emt 00:11:07]}
11. Be3 {[%clk 01:12:05]} {[%emt 00:10:07]} Nh4 {[%clk 00:50:05]} {[%emt
00:03:07]} 12. Qe2 {[%clk 01:11:38]} {[%emt 00:00:56]} Bb6 {[%clk 00:49:44]}
{[%emt 00:00:52]} 13. Rad1 {[%clk 01:08:41]} {[%emt 00:03:27]} Rg8 {[%clk
00:44:09]} {[%emt 00:06:05]} 14. Nd5 {[%clk 01:03:50]} {[%emt 00:05:20]} Ng6
{[%clk 00:37:28]} {[%emt 00:07:11]} 15. Qf3 {[%clk 00:58:02]} {[%emt 00:06:17]}
Nf4 {[%clk 00:37:51]} {[%emt 00:00:08]} 16. Bxf4 {[%clk 00:57:47]} {[%emt
00:00:45]} gxf4 {[%clk 00:37:55]} {[%emt 00:00:25]} 17. c3 {[%clk 00:57:11]}
{[%emt 00:01:08]} Nxd5 {[%clk 00:35:59]} {[%emt 00:02:26]} 18. Bxd5 {[%clk
00:54:47]} {[%emt 00:02:53]} c6 {[%clk 00:36:26]} {[%emt 00:00:03]} 19. Bb3
{[%clk 00:53:42]} {[%emt 00:01:35]} Qh4 {[%clk 00:32:27]} {[%emt 00:04:29]} 20.
Kh1 {[%clk 00:53:00]} {[%emt 00:01:11]} Rg7 {[%clk 00:31:59]} {[%emt 00:00:59]}
21. d4 {[%clk 00:52:32]} {[%emt 00:00:58]} O-O-O {[%clk 00:30:09]} {[%emt
00:02:21]} 22. d5 {[%clk 00:51:03]} {[%emt 00:01:58]} c5 {[%clk 00:30:33]}
{[%emt 00:00:06]} 23. Bc4 {[%clk 00:51:14]} {[%emt 00:00:19]} Rdg8 {[%clk
00:29:44]} {[%emt 00:01:19]} 24. Rg1 {[%clk 00:51:03]} {[%emt 00:00:41]} Bd8
{[%clk 00:27:51]} {[%emt 00:02:24]} 25. b4 {[%clk 00:50:33]} {[%emt 00:00:59]}
cxb4 {[%clk 00:27:21]} {[%emt 00:01:01]} 26. cxb4 {[%clk 00:50:55]} {[%emt
00:00:08]} Bb6 {[%clk 00:27:39]} {[%emt 00:00:12]} 27. Rdf1 {[%clk 00:50:45]}
{[%emt 00:00:39]} Kb8 {[%clk 00:25:32]} {[%emt 00:02:38]} 28. Be2 {[%clk
00:49:39]} {[%emt 00:01:35]} Bd4 {[%clk 00:19:29]} {[%emt 00:06:34]} 29. b5
{[%clk 00:48:56]} {[%emt 00:01:12]} f5 {[%clk 00:18:55]} {[%emt 00:01:04]} 30.
Bd3 {[%clk 00:37:26]} {[%emt 00:11:59]} fxe4 {[%clk 00:18:56]} {[%emt
00:00:30]} 31. Bxe4 {[%clk 00:37:32]} {[%emt 00:00:24]} Bxb5 {[%clk 00:19:14]}
{[%emt 00:00:12]} 32. Rb1 {[%clk 00:37:23]} {[%emt 00:00:38]} Ba6 {[%clk
00:19:05]} {[%emt 00:00:40]} 33. Qb3 {[%clk 00:29:31]} {[%emt 00:08:22]} Qxf2
{[%clk 00:09:59]} {[%emt 00:09:36]} 34. Qa4 {[%clk 00:25:12]} {[%emt 00:04:50]}
Be2 {[%clk 00:04:14]} {[%emt 00:06:14]} 35. Ng4 {[%clk 00:16:20]} {[%emt
00:09:21]} Bxg4 {[%clk 00:04:18]} {[%emt 00:00:27]} 36. hxg4 {[%clk 00:16:41]}
{[%emt 00:00:09]} Qh4 {[%clk 00:04:45]} {[%emt 00:00:02]} 0-1